[Event "11th LCC Super Blitz 2019"]
[Site "London"]
[Date "2019.12.08"]
[Round "10.5"]
[White "Royal, Shreyas"]
[Black "Stepanyan, Henrik"]
[Result "0-1"]
[ECO "D34"]
[WhiteElo "1941"]
[BlackElo "2193"]
[Annotator "NA"]
[PlyCount "90"]
[EventDate "2019.12.08"]
[EventType "swiss"]
[EventCountry "ENG"]
[SourceTitle "playchess.com"]
[Source "ChessBase"]
[SourceQuality "1"]
[TimeControl "180+2"]

1. d4 {[%emt 0:00:00]} d5 {[%emt 0:00:00]} 2. c4 {[%emt 0:00:00]} e6 {[%emt 0:00:00]} 3. g3 {[%emt 0:00:01]} c5 {[%emt 0:00:02]} 4. cxd5 {[%emt 0:00:02]} exd5 {[%emt 0:00:00]} 5. Nf3 {[%emt 0:00:02]} Nc6 {[%emt 0:00:01]} 6. Bg2 {[%emt 0:00:01]} Nf6 {[%emt 0:00:01]} 7. Nc3 {[%emt 0:00:02]} Be7 {[%emt 0:00:01]} 8. O-O {[%emt 0:00:02]} O-O {[%emt 0:00:02]} 9. Bg5 {[%emt 0:00:02]} c4 {[%emt 0:00:00]} 10. Ne5 {[%emt 0:00:03]} Be6 {[%emt 0:00:01]} 11. Bxf6 {[%emt 0:00:17]} Bxf6 {[%emt 0:00:01]} 12. Nxc4 {[%emt 0:00:01]} Bxd4 {[%emt 0:00:33]} 13. Na3 {[%emt 0:00:07]} Bxc3 {[%emt 0:00:39]} 14. bxc3 {[%emt 0:00:01]} Qe7 {[%emt 0:00:01]} 15. Nb5 {[%emt 0:00:14]} Rac8 {[%emt 0:00:39]} 16. Rc1 {[%emt 0:00:21]} Rfd8 {[%emt 0:00:11]} 17. Nd4 {[%emt 0:00:02]} Ne5 {[%emt 0:00:12]} 18. Nxe6 {[%emt 0:00:14]} Qxe6 {[%emt 0:00:11]} 19. Qb3 {[%emt 0:00:07]} b6 {[%emt 0:00:07]} 20. e4 {[%emt 0:00:07]} dxe4 {[%emt 0:00:20]} 21. Qxe6 {[%emt 0:00:14]} fxe6 {[%emt 0:00:01]} 22. Bxe4 {[%emt 0:00:01]} Rc4 {[%emt 0:00:01]} 23. f3 {[%emt 0:00:12]} Rdc8 {[%emt 0:00:04]} 24. Rce1 {[%emt 0:00:08]} Nf7 {[%emt 0:00:10]} 25. Bb7 {[%emt 0:00:05]} R8c7 {[%emt 0:00:08]} 26. Bd5 {[%emt 0:00:10]} Rxc3 {[%emt 0:00:02]} 27. Bxe6 {[%emt 0:00:01]} Kf8 {[%emt 0:00:06]} 28. Bb3 {[%emt 0:00:04]} a5 {[%emt 0:00:09]} 29. Re2 {[%emt 0:00:07]} b5 {[%emt 0:00:01]} 30. Bxf7 {[%emt 0:00:05]} Kxf7 {[%emt 0:00:02]} 31. f4 {[%emt 0:00:06]} b4 {[%emt 0:00:02]} 32. Re5 {[%emt 0:00:03]} a4 {[%emt 0:00:02]} 33. Rb5 {[%emt 0:00:06]} Rc2 {[%emt 0:00:02]} 34. Rf2 {[%emt 0:00:03]} Rxf2 {[%emt 0:00:02]} 35. Kxf2 {[%emt 0:00:01]} Rc2+ {[%emt 0:00:01]} 36. Kg1 {[%emt 0:00:00]} b3 {[%emt 0:00:04]} 37. axb3 {[%emt 0:00:02]} a3 {[%emt 0:00:00]} 38. Ra5 {[%emt 0:00:04]} a2 {[%emt 0:00:01]} 39. Ra7+ {[%emt 0:00:05]} Kf6 {[%emt 0:00:01]} 40. Ra6+ {[%emt 0:00:00]} Kf5 {[%emt 0:00:01]} 41. Ra5+ {[%emt 0:00:02]} Ke4 {[%emt 0:00:01]} 42. Re5+ {[%emt 0:00:04]} Kf3 {[%emt 0:00:01]} 43. Re1 {[%emt 0:00:02]} Rb2 {[%emt 0:00:04]} 44. Rf1+ {[%emt 0:00:00]} Kg4 {[%emt 0:00:02]} 45. b4 {[%emt 0:00:10]} Rb1 {[%emt 0:00:02]} 0-1

[Event "11th LCC Super Blitz 2019"]
[Site "London"]
[Date "2019.12.08"]
[Round "10.5"]
[White "Brass, Ezra"]
[Black "Ratnesan, Ranesh"]
[Result "1-0"]
[ECO "B22"]
[WhiteElo "1628"]
[BlackElo "2213"]
[Annotator "NA"]
[PlyCount "103"]
[EventDate "2019.12.08"]
[EventType "swiss"]
[EventCountry "ENG"]
[SourceTitle "playchess.com"]
[Source "ChessBase"]
[SourceQuality "1"]
[TimeControl "180+2"]

1. e4 {[%emt 0:00:00]} c5 {[%emt 0:00:00]} 2. c3 {[%emt 0:00:00]} d5 3. exd5 {[%emt 0:00:00]} Qxd5 {[%emt 0:00:00]} 4. d4 {[%emt 0:00:01]} cxd4 5. cxd4 {[%emt 0:00:02]} Nc6 {[%emt 0:00:02]} 6. Nf3 {[%emt 0:00:01]} e5 {[%emt 0:00:01]} 7. Nc3 {[%emt 0:00:07]} Bb4 {[%emt 0:00:01]} 8. dxe5 {[%emt 0:00:08]} Qxd1+ {[%emt 0:00:02]} 9. Kxd1 {[%emt 0:00:02]} Bg4 {[%emt 0:00:00]} 10. Be2 {[%emt 0:00:04]} O-O-O+ {[%emt 0:00:02]} 11. Ke1 {[%emt 0:00:12]} Nge7 {[%emt 0:00:07]} 12. h3 {[%emt 0:00:04]} Bxf3 13. Bxf3 {[%emt 0:00:01]} Nxe5 {[%emt 0:00:06]} 14. Bd2 {[%emt 0:00:14]} Nxf3+ {[%emt 0:00:07]} 15. gxf3 {[%emt 0:00:02]} Nf5 {[%emt 0:00:04]} 16. Rc1 {[%emt 0:00:03]} Kb8 {[%emt 0:00:04]} 17. a3 {[%emt 0:00:08]} Rhe8+ {[%emt 0:00:17]} 18. Kd1 {[%emt 0:00:34]} Ba5 {[%emt 0:00:06]} 19. Re1 {[%emt 0:00:06]} Rxe1+ {[%emt 0:00:03]} 20. Kxe1 {[%emt 0:00:04]} Nd4 {[%emt 0:00:01]} 21. Bf4+ {[%emt 0:00:13]} Ka8 {[%emt 0:00:05]} 22. b4 {[%emt 0:00:03]} Bb6 {[%emt 0:00:06]} 23. Nd5 {[%emt 0:00:09]} Nxf3+ {[%emt 0:00:13]} 24. Kf1 {[%emt 0:00:03]} g5 {[%emt 0:00:29]} 25. Bg3 {[%emt 0:00:08]} f5 {[%emt 0:00:19]} 26. Bd6 {[%emt 0:00:13]} Nd4 {[%emt 0:00:09]} 27. a4 {[%emt 0:00:04]} Nc6 {[%emt 0:00:02]} 28. Nxb6+ {[%emt 0:00:10]} axb6 {[%emt 0:00:02]} 29. Bc7 {[%emt 0:00:03]} Rd4 {[%emt 0:00:28]} 30. b5 {[%emt 0:00:08]} Nb8 {[%emt 0:00:18]} 31. Bxb6 {[%emt 0:00:05]} Rxa4 {[%emt 0:00:08]} 32. Rc8 {[%emt 0:00:01]} Rb4 {[%emt 0:00:10]} 33. Bc7 {[%emt 0:00:01]} Rxb5 {[%emt 0:00:02]} 34. Bxb8 {[%emt 0:00:05]} g4 {[%emt 0:00:14]} 35. hxg4 {[%emt 0:00:01]} fxg4 {[%emt 0:00:01]} 36. Rh8 {[%emt 0:00:01]} Rh5 {[%emt 0:00:01]} 37. Bf4+ {[%emt 0:00:10]} Ka7 {[%emt 0:00:01]} 38. Be3+ {[%emt 0:00:01]} Ka6 {[%emt 0:00:01]} 39. Ra8+ {[%emt 0:00:03]} Kb5 {[%emt 0:00:02]} 40. Ra7 {[%emt 0:00:01]} Kc6 {[%emt 0:00:01]} 41. Ra4 {[%emt 0:00:03]} Rf5 {[%emt 0:00:18]} 42. Rxg4 {[%emt 0:00:03]} b5 {[%emt 0:00:01]} 43. Rg7 {[%emt 0:00:02]} h5 {[%emt 0:00:07]} 44. Rg6+ {[%emt 0:00:02]} Kd5 {[%emt 0:00:02]} 45. Rb6 {[%emt 0:00:02]} Ke4 {[%emt 0:00:02]} 46. Re6+ {[%emt 0:00:02]} Kf3 {[%emt 0:00:01]} 47. Rc6 {[%emt 0:00:02]} Ke4 {[%emt 0:00:02]} 48. Rc3 {[%emt 0:00:04]} Rd5 {[%emt 0:00:04]} 49. Ke2 {[%emt 0:00:02]} b4 {[%emt 0:00:01]} 50. Rb3 {[%emt 0:00:01]} Rb5 {[%emt 0:00:02]} 51. Bd2 {[%emt 0:00:01]} Kd4 {[%emt 0:00:01]} 52. Rxb4+ {[%emt 0:00:02]} 1-0

[Event "11th LCC Super Blitz 2019"]
[Site "London"]
[Date "2019.12.08"]
[Round "10.6"]
[White "Marusenko, Petr"]
[Black "Ismail, Mohammed Aayan"]
[Result "1-0"]
[ECO "C02"]
[WhiteElo "2085"]
[BlackElo "1641"]
[Annotator "NA"]
[PlyCount "49"]
[EventDate "2019.12.08"]
[EventType "swiss"]
[EventCountry "ENG"]
[SourceTitle "playchess.com"]
[Source "ChessBase"]
[SourceQuality "1"]
[TimeControl "180+2"]

1. d4 {[%emt 0:00:00]} e6 {[%emt 0:00:00]} 2. e4 {[%emt 0:00:02]} d5 {[%emt 0:00:02]} 3. e5 {[%emt 0:00:01]} c5 {[%emt 0:00:01]} 4. c3 {[%emt 0:00:01]} Nc6 {[%emt 0:00:02]} 5. Nf3 {[%emt 0:00:01]} Qb6 {[%emt 0:00:04]} 6. a3 {[%emt 0:00:04]} cxd4 {[%emt 0:00:12]} 7. cxd4 {[%emt 0:00:01]} Nge7 {[%emt 0:00:04]} 8. b4 {[%emt 0:00:13]} Nf5 {[%emt 0:00:16]} 9. Be3 {[%emt 0:00:03]} h5 {[%emt 0:00:35]} 10. Nbd2 {[%emt 0:00:15]} Nxe3 {[%emt 0:00:27]} 11. fxe3 {[%emt 0:00:03]} a6 {[%emt 0:00:11]} 12. Bd3 {[%emt 0:00:03]} Be7 {[%emt 0:00:07]} 13. O-O {[%emt 0:00:02]} O-O {[%emt 0:00:10]} 14. Nb3 {[%emt 0:00:11]} g6 {[%emt 0:00:05]} 15. Qe1 {[%emt 0:00:12]} Kg7 {[%emt 0:00:05]} 16. Qg3 {[%emt 0:00:11]} a5 {[%emt 0:00:27]} 17. b5 {[%emt 0:00:03]} a4 {[%emt 0:00:06]} 18. Nbd2 {[%emt 0:00:10]} Na5 {[%emt 0:00:02]} 19. Ng5 {[%emt 0:00:05]} Bxg5 {[%emt 0:00:18]} 20. Qxg5 {[%emt 0:00:02]} Qd8 {[%emt 0:00:01]} 21. Qg3 {[%emt 0:00:10]} Qe7 {[%emt 0:00:03]} 22. Rf6 {[%emt 0:00:03]} Qe8 {[%emt 0:00:11]} 23. Nf3 {[%emt 0:00:07]} b6 {[%emt 0:00:04]} 24. Nh4 {[%emt 0:00:03]} Ra7 {[%emt 0:00:04]} 25. Raf1 {[%emt 0:00:03]} 1-0

[Event "11th LCC Super Blitz 2019"]
[Site "London"]
[Date "2019.12.08"]
[Round "10.6"]
[White "Arapalea, Daniel-Ionel"]
[Black "Bird, Joel"]
[Result "0-1"]
[ECO "B02"]
[WhiteElo "1840"]
[BlackElo "2009"]
[Annotator "NA"]
[PlyCount "167"]
[EventDate "2019.12.08"]
[EventType "swiss"]
[EventCountry "ENG"]
[SourceTitle "playchess.com"]
[Source "ChessBase"]
[SourceQuality "1"]
[TimeControl "180+2"]

1. e4 {[%emt 0:00:00]} d5 {[%emt 0:00:00]} 2. exd5 {[%emt 0:00:00]} Nf6 {[%emt 0:00:00]} 3. Nc3 {[%emt 0:00:01]} Nxd5 {[%emt 0:00:00]} 4. g3 {[%emt 0:00:05]} Bf5 {[%emt 0:00:17]} 5. Bg2 {[%emt 0:00:03]} e6 {[%emt 0:00:01]} 6. Nge2 {[%emt 0:00:02]} c6 {[%emt 0:00:03]} 7. d3 {[%emt 0:00:03]} Be7 {[%emt 0:00:01]} 8. O-O {[%emt 0:00:02]} Nd7 {[%emt 0:00:01]} 9. Re1 {[%emt 0:00:10]} O-O {[%emt 0:00:01]} 10. Nxd5 {[%emt 0:00:06]} cxd5 {[%emt 0:00:05]} 11. Nf4 {[%emt 0:00:02]} Bf6 {[%emt 0:00:09]} 12. Nh5 {[%emt 0:00:14]} Be7 {[%emt 0:00:16]} 13. Nf4 {[%emt 0:00:01]} Rc8 {[%emt 0:00:01]} 14. c3 {[%emt 0:00:03]} Bd6 {[%emt 0:00:14]} 15. Ne2 {[%emt 0:00:05]} Bg6 {[%emt 0:00:08]} 16. Nf4 {[%emt 0:00:08]} Bf5 {[%emt 0:00:04]} 17. Qe2 {[%emt 0:00:05]} h6 {[%emt 0:00:09]} 18. d4 {[%emt 0:00:07]} Nf6 {[%emt 0:00:03]} 19. f3 {[%emt 0:00:16]} Qc7 {[%emt 0:00:02]} 20. Nd3 {[%emt 0:00:02]} b5 {[%emt 0:00:10]} 21. Ne5 {[%emt 0:00:04]} b4 {[%emt 0:00:06]} 22. Bd2 {[%emt 0:00:05]} bxc3 {[%emt 0:00:06]} 23. bxc3 {[%emt 0:00:04]} Bxe5 {[%emt 0:00:10]} 24. dxe5 {[%emt 0:00:02]} Nd7 {[%emt 0:00:03]} 25. g4 {[%emt 0:00:02]} Bg6 {[%emt 0:00:06]} 26. g5 {[%emt 0:00:03]} h5 {[%emt 0:00:06]} 27. f4 {[%emt 0:00:14]} Qc4 {[%emt 0:00:02]} 28. Qxc4 {[%emt 0:00:16]} Rxc4 {[%emt 0:00:03]} 29. Bf1 {[%emt 0:00:02]} Rc7 {[%emt 0:00:04]} 30. a4 {[%emt 0:00:08]} Rb8 {[%emt 0:00:04]} 31. Re3 {[%emt 0:00:16]} Bf5 {[%emt 0:00:05]} 32. Bd3 {[%emt 0:00:02]} Bxd3 {[%emt 0:00:05]} 33. Rxd3 {[%emt 0:00:01]} Nc5 {[%emt 0:00:01]} 34. Rh3 {[%emt 0:00:08]} Ne4 {[%emt 0:00:08]} 35. Be1 {[%emt 0:00:01]} g6 {[%emt 0:00:02]} 36. Re3 {[%emt 0:00:02]} Rc4 {[%emt 0:00:01]} 37. Kg2 {[%emt 0:00:08]} Rb2+ {[%emt 0:00:03]} 38. Kg1 {[%emt 0:00:18]} Kg7 {[%emt 0:00:10]} 39. a5 {[%emt 0:00:07]} Rb3 {[%emt 0:00:09]} 40. a6 {[%emt 0:00:13]} Rb6 {[%emt 0:00:32]} 41. Re2 {[%emt 0:00:11]} Nxc3 {[%emt 0:00:01]} 42. Bxc3 {[%emt 0:00:02]} Rxc3 {[%emt 0:00:01]} 43. Kf2 {[%emt 0:00:05]} Rcc6 {[%emt 0:00:06]} 44. Rea2 {[%emt 0:00:02]} Kf8 {[%emt 0:00:02]} 45. Ke3 {[%emt 0:00:02]} Ke7 {[%emt 0:00:01]} 46. Kd4 {[%emt 0:00:01]} Rb4+ {[%emt 0:00:03]} 47. Kd3 {[%emt 0:00:04]} Kd7 {[%emt 0:00:06]} 48. Ke3 {[%emt 0:00:08]} Rc3+ {[%emt 0:00:02]} 49. Kf2 {[%emt 0:00:01]} Rxf4+ {[%emt 0:00:02]} 50. Kg2 {[%emt 0:00:01]} Rg4+ {[%emt 0:00:04]} 51. Kf2 {[%emt 0:00:02]} Rxg5 {[%emt 0:00:01]} 52. Rb2 {[%emt 0:00:00]} Rf5+ {[%emt 0:00:01]} 53. Kg2 {[%emt 0:00:02]} Rxe5 {[%emt 0:00:06]} 54. Rb7+ {[%emt 0:00:02]} Kd6 {[%emt 0:00:02]} 55. Rxa7 {[%emt 0:00:02]} Re2+ {[%emt 0:00:04]} 56. Kf1 {[%emt 0:00:01]} Rxh2 {[%emt 0:00:08]} 57. Kg1 {[%emt 0:00:00]} Rcc2 {[%emt 0:00:02]} 58. Rxf7 {[%emt 0:00:02]} Rcg2+ {[%emt 0:00:03]} 59. Kf1 {[%emt 0:00:01]} Rh1+ {[%emt 0:00:01]} 60. Kxg2 {[%emt 0:00:03]} Rxa1 {[%emt 0:00:02]} 61. a7 {[%emt 0:00:00]} Ke5 {[%emt 0:00:04]} 62. Kf3 {[%emt 0:00:01]} g5 {[%emt 0:00:02]} 63. Ke3 {[%emt 0:00:01]} Ra3+ {[%emt 0:00:01]} 64. Kf2 {[%emt 0:00:01]} d4 {[%emt 0:00:01]} 65. Rh7 {[%emt 0:00:01]} h4 {[%emt 0:00:01]} 66. Rg7 {[%emt 0:00:01]} Ke4 {[%emt 0:00:05]} 67. Re7 {[%emt 0:00:02]} e5 {[%emt 0:00:02]} 68. Rg7 {[%emt 0:00:01]} Ra2+ {[%emt 0:00:02]} 69. Kg1 {[%emt 0:00:00]} Kf5 {[%emt 0:00:02]} 70. Rf7+ {[%emt 0:00:02]} Kg4 {[%emt 0:00:01]} 71. Re7 {[%emt 0:00:01]} Kg3 {[%emt 0:00:01]} 72. Kf1 {[%emt 0:00:01]} Ra1+ {[%emt 0:00:04]} 73. Ke2 {[%emt 0:00:01]} Kf4 {[%emt 0:00:04]} 74. Kd3 {[%emt 0:00:01]} Ra3+ {[%emt 0:00:03]} 75. Kc4 {[%emt 0:00:00]} d3 {[%emt 0:00:01]} 76. Rd7 {[%emt 0:00:01]} Ke4 {[%emt 0:00:02]} 77. Kb5 {[%emt 0:00:01]} Ke3 {[%emt 0:00:02]} 78. Kb6 {[%emt 0:00:01]} e4 {[%emt 0:00:01]} 79. Rd5 {[%emt 0:00:03]} Rxa7 {[%emt 0:00:01]} 80. Rxg5 {[%emt 0:00:04]} Rf7 {[%emt 0:00:03]} 81. Rh5 {[%emt 0:00:01]} Rf4 {[%emt 0:00:01]} 82. Kc5 {[%emt 0:00:01]} d2 {[%emt 0:00:00]} 83. Rd5 {[%emt 0:00:01]} Ke2 {[%emt 0:00:01]} 84. Kd4 {[%emt 0:00:06]} 0-1

[Event "11th LCC Super Blitz 2019"]
[Site "London"]
[Date "2019.12.08"]
[Round "10.6"]
[White "Davis, Holden"]
[Black "Toh, Q Kane"]
[Result "0-1"]
[ECO "B13"]
[WhiteElo "1769"]
[BlackElo "1606"]
[Annotator "NA"]
[PlyCount "38"]
[EventDate "2019.12.08"]
[EventType "swiss"]
[EventCountry "ENG"]
[SourceTitle "playchess.com"]
[Source "ChessBase"]
[SourceQuality "1"]
[TimeControl "180+2"]

1. e4 {[%emt 0:00:00]} c6 {[%emt 0:00:00]} 2. d4 {[%emt 0:00:01]} d5 {[%emt 0:00:00]} 3. exd5 {[%emt 0:00:01]} cxd5 {[%emt 0:00:00]} 4. Bd3 {[%emt 0:00:01]} Nc6 {[%emt 0:00:01]} 5. c3 {[%emt 0:00:01]} Qc7 {[%emt 0:00:01]} 6. Nd2 {[%emt 0:00:04]} Nf6 {[%emt 0:00:02]} 7. Ngf3 {[%emt 0:00:01]} Bg4 {[%emt 0:00:02]} 8. O-O {[%emt 0:00:03]} e6 {[%emt 0:00:01]} 9. h3 {[%emt 0:00:02]} Bh5 {[%emt 0:00:01]} 10. Qb3 {[%emt 0:00:04]} Bd6 {[%emt 0:00:10]} 11. Re1 {[%emt 0:00:02]} O-O {[%emt 0:00:02]} 12. Be2 {[%emt 0:00:11]} Rab8 {[%emt 0:00:14]} 13. Nf1 {[%emt 0:00:06]} Ne4 {[%emt 0:00:07]} 14. Ne3 {[%emt 0:00:09]} b5 {[%emt 0:00:18]} 15. g4 {[%emt 0:00:07]} Bg6 {[%emt 0:00:01]} 16. Nf1 {[%emt 0:00:16]} Na5 {[%emt 0:00:16]} 17. Qd1 {[%emt 0:00:08]} Nc4 {[%emt 0:00:04]} 18. b3 {[%emt 0:00:06]} Nxc3 {[%emt 0:00:08]} 19. Qc2 {[%emt 0:00:11]} Bxc2 {[%emt 0:00:01]} 0-1

[Event "11th LCC Super Blitz 2019"]
[Site "London"]
[Date "2019.12.08"]
[Round "10.7"]
[White "Nettleton, Charlie B"]
[Black "Gudenas, Motiejus"]
[Result "1-0"]
[ECO "C65"]
[WhiteElo "2021"]
[BlackElo "1993"]
[Annotator "NA"]
[PlyCount "62"]
[EventDate "2019.12.08"]
[EventType "swiss"]
[EventCountry "ENG"]
[SourceTitle "playchess.com"]
[Source "ChessBase"]
[SourceQuality "1"]
[TimeControl "180+2"]

1. e4 {[%emt 0:00:00]} e5 {[%emt 0:00:00]} 2. Nc3 {[%emt 0:00:02]} Nc6 {[%emt 0:00:01]} 3. Nf3 {[%emt 0:00:06]} Nf6 {[%emt 0:00:01]} 4. Bb5 {[%emt 0:00:08]} Bd6 {[%emt 0:00:01]} 5. O-O {[%emt 0:00:04]} O-O {[%emt 0:00:01]} 6. d4 {[%emt 0:00:03]} exd4 {[%emt 0:00:02]} 7. Nxd4 {[%emt 0:00:02]} Re8 {[%emt 0:00:07]} 8. Re1 {[%emt 0:00:16]} Bb4 {[%emt 0:00:12]} 9. Nxc6 {[%emt 0:00:15]} bxc6 {[%emt 0:00:15]} 10. Bd3 {[%emt 0:00:02]} d5 {[%emt 0:00:07]} 11. e5 {[%emt 0:00:05]} Nd7 {[%emt 0:00:34]} 12. Bf4 {[%emt 0:00:21]} d4 {[%emt 0:00:28]} 13. a3 {[%emt 0:00:01]} dxc3 {[%emt 0:00:02]} 14. axb4 {[%emt 0:00:01]} cxb2 {[%emt 0:00:02]} 15. Rb1 {[%emt 0:00:02]} Nb6 {[%emt 0:00:12]} 16. Qh5 {[%emt 0:00:10]} g6 {[%emt 0:00:06]} 17. Qh6 {[%emt 0:00:01]} Qe7 {[%emt 0:00:18]} 18. Bg5 {[%emt 0:00:01]} Qf8 {[%emt 0:00:01]} 19. Qh4 {[%emt 0:00:02]} Nd5 {[%emt 0:00:09]} 20. Rxb2 {[%emt 0:00:11]} Be6 {[%emt 0:00:27]} 21. Rbb1 {[%emt 0:00:13]} a5 {[%emt 0:00:05]} 22. bxa5 {[%emt 0:00:02]} Rxa5 {[%emt 0:00:02]} 23. c4 {[%emt 0:00:10]} Ne7 {[%emt 0:00:09]} 24. Bf6 {[%emt 0:00:04]} Nf5 {[%emt 0:00:05]} 25. Bxf5 {[%emt 0:00:06]} Bxf5 {[%emt 0:00:01]} 26. Rb7 {[%emt 0:00:03]} Be6 {[%emt 0:00:18]} 27. Rxc7 {[%emt 0:00:12]} Rc5 {[%emt 0:00:01]} 28. Qg5 {[%emt 0:00:06]} Rxc4 {[%emt 0:00:03]} 29. h4 {[%emt 0:00:01]} Rg4 {[%emt 0:00:03]} 30. Qe3 {[%emt 0:00:05]} Rc4 {[%emt 0:00:04]} 31. h5 {[%emt 0:00:03]} Qc5 {[%emt 0:00:05]} 1-0

[Event "11th LCC Super Blitz 2019"]
[Site "London"]
[Date "2019.12.08"]
[Round "10.7"]
[White "Nunn, Petra"]
[Black "Watson, Mikey J"]
[Result "0-1"]
[ECO "B12"]
[WhiteElo "1908"]
[BlackElo "1748"]
[Annotator "NA"]
[PlyCount "70"]
[EventDate "2019.12.08"]
[EventType "swiss"]
[EventCountry "ENG"]
[SourceTitle "playchess.com"]
[Source "ChessBase"]
[SourceQuality "1"]
[TimeControl "180+2"]

1. e4 {[%emt 0:00:00]} c6 {[%emt 0:00:00]} 2. d4 {[%emt 0:00:02]} d5 {[%emt 0:00:00]} 3. f3 {[%emt 0:00:01]} dxe4 {[%emt 0:00:02]} 4. fxe4 {[%emt 0:00:01]} e5 {[%emt 0:00:01]} 5. Nf3 {[%emt 0:00:01]} exd4 {[%emt 0:00:02]} 6. Bc4 {[%emt 0:00:01]} Be6 {[%emt 0:00:09]} 7. Bxe6 {[%emt 0:00:04]} fxe6 {[%emt 0:00:02]} 8. O-O {[%emt 0:00:12]} Be7 {[%emt 0:00:23]} 9. Nxd4 {[%emt 0:00:35]} Qd6 {[%emt 0:00:20]} 10. Bf4 {[%emt 0:00:36]} Qd7 {[%emt 0:00:39]} 11. Nc3 {[%emt 0:01:10]} Nf6 {[%emt 0:00:07]} 12. e5 {[%emt 0:00:09]} Nd5 {[%emt 0:00:09]} 13. Nxd5 {[%emt 0:00:02]} Qxd5 {[%emt 0:00:08]} 14. Kh1 {[%emt 0:00:02]} Nd7 {[%emt 0:00:08]} 15. Nf3 {[%emt 0:00:05]} O-O-O {[%emt 0:00:03]} 16. Qxd5 {[%emt 0:00:06]} cxd5 {[%emt 0:00:01]} 17. Ng5 {[%emt 0:00:01]} Bxg5 {[%emt 0:00:03]} 18. Bxg5 {[%emt 0:00:01]} Rdf8 {[%emt 0:00:02]} 19. Be7 {[%emt 0:00:15]} Rxf1+ 20. Rxf1 Nxe5 {[%emt 0:00:06]} 21. Re1 {[%emt 0:00:01]} Kd7 {[%emt 0:00:02]} 22. Bc5 {[%emt 0:00:02]} Nc6 {[%emt 0:00:02]} 23. b4 {[%emt 0:00:02]} b6 {[%emt 0:00:01]} 24. Bf2 {[%emt 0:00:02]} Rf8 {[%emt 0:00:02]} 25. Kg1 {[%emt 0:00:01]} e5 {[%emt 0:00:01]} 26. g3 {[%emt 0:00:03]} e4 {[%emt 0:00:02]} 27. Kg2 {[%emt 0:00:02]} Nxb4 {[%emt 0:00:01]} 28. Bd4 {[%emt 0:00:03]} g6 {[%emt 0:00:03]} 29. c3 {[%emt 0:00:04]} Nd3 {[%emt 0:00:01]} 30. Rf1 {[%emt 0:00:10]} Rxf1 {[%emt 0:00:02]} 31. Kxf1 {[%emt 0:00:01]} Kc6 {[%emt 0:00:03]} 32. Ke2 {[%emt 0:00:03]} Kb5 {[%emt 0:00:01]} 33. Kd2 {[%emt 0:00:02]} Ka4 {[%emt 0:00:05]} 34. Kc2 {[%emt 0:00:01]} Ka3 {[%emt 0:00:02]} 35. Kb1 {[%emt 0:00:01]} Ne1 {[%emt 0:00:16]} 0-1

[Event "11th LCC Super Blitz 2019"]
[Site "London"]
[Date "2019.12.08"]
[Round "10.7"]
[White "Kennedy, Craig"]
[Black "Van Zyl-Rudd, Jack"]
[Result "1-0"]
[ECO "A00"]
[WhiteElo "1899"]
[BlackElo "2290"]
[Annotator "NA"]
[PlyCount "79"]
[EventDate "2019.12.08"]
[EventType "swiss"]
[EventCountry "ENG"]
[SourceTitle "playchess.com"]
[Source "ChessBase"]
[SourceQuality "1"]
[TimeControl "180+2"]

1. g3 {[%emt 0:00:00]} Nf6 {[%emt 0:00:00]} 2. Bg2 {[%emt 0:00:02]} d5 {[%emt 0:00:02]} 3. d3 {[%emt 0:00:02]} e5 {[%emt 0:00:03]} 4. c4 {[%emt 0:00:03]} dxc4 {[%emt 0:00:04]} 5. Qa4+ {[%emt 0:00:02]} Bd7 {[%emt 0:00:04]} 6. Qxc4 {[%emt 0:00:02]} Bc6 {[%emt 0:00:01]} 7. Nf3 {[%emt 0:00:02]} Nbd7 {[%emt 0:00:05]} 8. O-O {[%emt 0:00:03]} Bd6 {[%emt 0:00:06]} 9. a3 {[%emt 0:00:05]} O-O {[%emt 0:00:04]} 10. Qc2 {[%emt 0:00:03]} e4 {[%emt 0:00:21]} 11. dxe4 {[%emt 0:00:06]} Bxe4 {[%emt 0:00:01]} 12. Qb3 {[%emt 0:00:07]} Nc5 {[%emt 0:00:01]} 13. Qd1 {[%emt 0:00:14]} a5 {[%emt 0:00:42]} 14. Nc3 {[%emt 0:00:02]} Bc6 {[%emt 0:00:01]} 15. Bg5 {[%emt 0:00:11]} h6 {[%emt 0:00:03]} 16. Be3 {[%emt 0:00:04]} a4 {[%emt 0:00:03]} 17. Nd4 {[%emt 0:00:13]} Bxg2 {[%emt 0:00:02]} 18. Kxg2 {[%emt 0:00:02]} Ng4 {[%emt 0:00:15]} 19. Nc2 {[%emt 0:00:17]} Nb3 {[%emt 0:00:03]} 20. Rb1 {[%emt 0:00:03]} Qe7 {[%emt 0:00:08]} 21. h3 {[%emt 0:00:07]} Nxe3+ {[%emt 0:00:19]} 22. Nxe3 {[%emt 0:00:02]} f5 {[%emt 0:00:10]} 23. Nxa4 {[%emt 0:00:07]} Qf7 {[%emt 0:00:22]} 24. Nc3 {[%emt 0:00:08]} f4 {[%emt 0:00:00]} 25. Ng4 {[%emt 0:00:12]} Nc5 {[%emt 0:00:09]} 26. Qd5 {[%emt 0:00:07]} Ne6 {[%emt 0:00:01]} 27. Ne4 {[%emt 0:00:12]} Kh8 {[%emt 0:00:14]} 28. Nxd6 {[%emt 0:00:04]} cxd6 {[%emt 0:00:01]} 29. Rbc1 {[%emt 0:00:23]} Ng5 {[%emt 0:00:07]} 30. Qxf7 {[%emt 0:00:05]} Rxf7 {[%emt 0:00:03]} 31. gxf4 {[%emt 0:00:14]} Rxf4 {[%emt 0:00:01]} 32. Rfd1 {[%emt 0:00:08]} Re8 {[%emt 0:00:01]} 33. e3 {[%emt 0:00:07]} Rf3 {[%emt 0:00:02]} 34. h4 {[%emt 0:00:04]} Ref8 {[%emt 0:00:14]} 35. hxg5 {[%emt 0:00:03]} h5 {[%emt 0:00:01]} 36. Rh1 {[%emt 0:00:06]} g6 {[%emt 0:00:00]} 37. Nf6 {[%emt 0:00:04]} Rf5 {[%emt 0:00:01]} 38. f4 {[%emt 0:00:03]} Rb5 {[%emt 0:00:04]} 39. b4 {[%emt 0:00:03]} Ra8 {[%emt 0:00:02]} 40. Rc7 {[%emt 0:00:01]} 1-0